fUSD/lending_fUSD_20260326
["ID","MTS","AMOUNT","RATE_DAILY","PERIOD"]
[418915588,1774536638967,-500.0,0.00014849,2]
[418915590,1774536638977,-500.0,0.00014849,2]
[418915592,1774536638987,-510.0,0.00014849,2]
[418915594,1774536638996,-150.0,0.00014849,2]
[418915597,1774536639006,-150.0,0.00014849,2]
[418915599,1774536639016,-150.0,0.00014849,2]
[418915601,1774536639026,-150.0,0.00014849,2]
[418915603,1774536639035,-243.66648939,0.00014849,2]
[418915605,1774536639044,-500.0,0.00014849,2]
[418915607,1774536639053,-500.0,0.00014849,2]
[418915609,1774536639064,-500.0,0.00014849,2]
[418915611,1774536639073,-306.83818638,0.00014849,2]
[418915613,1774536639083,-150.0,0.00014849,2]
[418915615,1774536639093,-500.0,0.00014849,2]
[418915617,1774536639103,-500.0,0.00014849,2]
[418915619,1774536639113,-500.0,0.00014849,2]
[418915621,1774536639122,-500.0,0.00014849,2]
[418915623,1774536639131,-500.0,0.00014849,2]
[418915624,1774536639141,-500.0,0.00014849,2]
[418915625,1774536639151,-342.45528545,0.00014849,2]
[418915626,1774536639161,-500.0,0.00014849,2]
[418915627,1774536639171,-500.0,0.00014849,2]
[418915628,1774536639182,-500.0,0.00014849,2]
[418915629,1774536639192,-500.0,0.00014849,2]
[418915630,1774536639202,-500.0,0.00014849,2]
[418915631,1774536639211,-150.0,0.00014849,2]
[418915632,1774536639221,-519.63573752,0.00014849,2]
[418915633,1774536639230,-207.61422289,0.00014849,2]
[418915634,1774536639240,-500.0,0.00014849,2]
[418915635,1774536639250,-500.0,0.00014849,2]
[418915636,1774536639259,-500.0,0.00014849,2]
[418915637,1774536639269,-500.0,0.00014849,2]
[418915638,1774536639279,-500.0,0.00014849,2]
[418915639,1774536639288,-500.0,0.00014849,2]
[418915640,1774536639298,-500.0,0.00014849,2]
[418915641,1774536639307,-500.0,0.00014849,2]
[418915642,1774536639317,-500.0,0.00014849,2]
[418915643,1774536639326,-500.0,0.00014849,2]
[418915644,1774536639336,-500.0,0.00014849,2]
[418915645,1774536639346,-501.45238975,0.00014849,2]
[418915646,1774536639355,-1491.30447232,0.00014891,2]
[418915647,1774536639366,-503.0,0.00014892,2]
[418915648,1774536639375,-166.66,0.00014944,2]
[418915649,1774536639386,-300.0,0.00015,2]
[418915650,1774536639396,-1000.0,0.00015,2]
[418915651,1774536639405,-1600.0,0.00015192,2]
[418915652,1774536639415,-197.2341,0.000152,2]
[418915653,1774536639425,-1693.95,0.00015211,2]
[418915654,1774536639435,-166.66,0.0001524,2]
[418915655,1774536639445,-1000.0,0.0001524,2]
[418915656,1774536639455,-1000.0,0.0001524,2]
[418915657,1774536639466,-1000.0,0.0001524,2]
[418915658,1774536639476,-269.6855976,0.0001524,2]
[418915659,1774536639491,-451.15504761,0.0001524,2]
[418915660,1774536639503,-279.15935479,0.0001524,2]
[418915661,1774536639512,-88.53637104,0.0001524,2]
[418915662,1774536639523,-442.03960109,0.0001524,2]
[418915663,1774536639534,-469.42402787,0.0001524,2]
[418915664,1774536639543,-1000.0,0.0001524,2]
[418915665,1774536639554,-628.28148013,0.0001524,2]
[418915666,1774536639566,-371.71851987,0.0001524,2]
[418915667,1774536639575,-246.74898028,0.0001524,2]
[418915668,1774536640671,-12.90501972,0.0001524,2]
[418915669,1774536640681,-350.0,0.0001534,2]
[418915670,1774536640691,-430.46,0.00015386,2]
[418915671,1774536640701,-430.46,0.00015386,2]
[418915672,1774536640710,-160.0,0.00015419,7]
[418915673,1774536640720,-237.447446,0.00015419,7]
[418915674,1774536640730,-160.0,0.00015419,7]
[418915675,1774536640740,-1546.48273779,0.00015439,2]
[418915676,1774536640749,-1598.24479649,0.0001546,2]
[418915696,1774536646176,-2467.0,0.00013255,2]
[418915697,1774536646187,-361.99,0.00015225,2]
[418915698,1774536646198,-265.94020351,0.0001546,2]
[418915699,1774536646209,-152.351,0.0001546,2]
[418915700,1774536646218,-150.30407876,0.0001546,2]
[418915701,1774536646229,-160.0,0.00015461,7]
[418915702,1774536646239,-604.91471771,0.0001548,2]
[418915703,1774536646264,-572.72623037,0.0001548,2]
[418915704,1774536646309,-3822.35905192,0.0001548,2]
[418915705,1774536646318,-2500.0,0.0001548,2]
[418915706,1774536646329,-4602.29137324,0.0001548,2]
[418915707,1774536646340,-2130.10000005,0.0001548,2]
[418915708,1774536646352,-1102.12016166,0.0001548,2]
[418915709,1774536646362,-179.92697018,0.0001548,2]
[418915710,1774536646372,-350.0,0.00015486,2]
[418915711,1774536646382,-500.0,0.00015488,2]
[418915712,1774536646391,-500.0,0.00015488,2]
[418915713,1774536646401,-153.7446755,0.00015488,2]
[418915714,1774536646410,-500.0,0.00015488,2]
[418915715,1774536646420,-244.24165145,0.00015489,2]
[418915716,1774536646433,-4930.54698951,0.00015489,2]
[418915717,1774536646444,-2081.94289208,0.00015489,2]
[418915737,1774536649985,-5002.87362952,0.00015489,2]
[418915738,1774536649994,-338.08040746,0.00015498,2]
[418915739,1774536650277,-346.4546635,0.00015498,2]
[418915740,1774536650340,-1315.46492904,0.00015498,2]
[418915741,1774536650350,-10620.32735344,0.000155,2]
[418915742,1774536650359,-444.80689,0.00015526,7]
[418915743,1774536650369,-160.0,0.00015534,7]
[418915744,1774536650379,-12259.6051625,0.00015535,2]
[418915745,1774536650388,-166.66,0.00015536,2]
[418915746,1774536650397,-7834.51153493,0.0001554,2]
[418915747,1774536650407,-366.77663085,0.00015541,2]
[418915748,1774536650417,-10620.32735344,0.00015544,2]
[418915749,1774536650426,-251.24357772,0.0001557,2]
[418915750,1774536650435,-433.0,0.00015573,2]
[418915751,1774536650445,-604.16,0.00015579,2]
[418915752,1774536650455,-12259.6051625,0.0001558,2]
[418915753,1774536650464,-10620.32735344,0.00015589,2]
[418915754,1774536650473,-1674.02,0.000156,2]
[418915755,1774536650483,-1713.48,0.000156,2]
[418915756,1774536650492,-7834.51153493,0.000156,2]
[418915757,1774536650502,-12259.6051625,0.00015626,2]
[418915758,1774536650512,-10620.32735344,0.00015633,2]
[418915759,1774536650522,-165.81014655,0.00015636,2]
[418915760,1774536650532,-430.46,0.00015648,2]
[418915761,1774536650542,-410.08177415,0.00015652,2]
[418915762,1774536650551,-7834.51153493,0.0001566,2]
[418915763,1774536650560,-1368.08981256,0.00015672,2]
[418915768,1774537327894,3298.887075,7.945e-05,2]
[418915769,1774537388396,3546.896485,7.945e-05,2]
[418915771,1774537416215,573.72,7.736e-05,2]
[418915778,1774537834558,-1110.61079819,0.0001,2]
[418915779,1774537834620,-385.21259454,0.0001,2]
[418915780,1774537834630,-214.14996289,0.0001,2]
[418915781,1774537834682,-45.85003711,0.0001,2]
[418915782,1774537834692,-1990.5,0.00012669,2]
[418915783,1774537834701,-1441.39996289,0.00012732,2]
[418915787,1774537838316,-1852.927,0.00012732,2]
[418915788,1774537838328,-1176.555,0.00012732,2]
[418915789,1774537838339,-529.11803711,0.00012732,2]
[418915790,1774537838349,-250.0,0.00012795,2]
[418915791,1774537838358,-300.0,0.00012844,2]
[418915792,1774537838368,-1200.0,0.00012844,2]
[418915793,1774537838378,-1200.0,0.00012845,2]
[418915794,1774537838387,-221.95346087,0.00012845,2]
[418915795,1774537838402,-78.04653913,0.00012845,2]
[418915796,1774537838411,-300.0,0.00012845,2]
[418915797,1774537838420,-4237.74905167,0.00012846,2]
[418915798,1774537838429,-310.9929055,0.00012914,2]
[418915799,1774537838438,-400.0,0.0001292,4]
[418915800,1774537838448,-1330.0,0.00012933,2]
[418915801,1774537838457,-404.13164638,0.00013,2]
[418915802,1774537838468,-323.03044756,0.00013,2]
[418915803,1774537838479,-3395.26019851,0.00013,2]
[418915804,1774537838488,-2710.07396103,0.00013,15]
[418915805,1774537838498,-922.96584045,0.00013002,2]
[418915806,1774537838509,-56.20082622,0.00013002,2]
[418915807,1774537838518,-160.0,0.00013002,2]
[418915808,1774537838528,-1000.0,0.00013055,2]
[418915809,1774537838538,-1500.0,0.0001306,2]
[418915810,1774537838547,-4474.50610842,0.0001307,2]
[418915811,1774537838557,-500.0,0.0001308,2]
[418915812,1774537838567,-500.0,0.00013154,2]
[418915813,1774537838576,-577.40102147,0.00013154,2]
[418915814,1774537838587,-150.24756879,0.00013154,2]
[418915815,1774537838596,-501.90856676,0.00013154,2]
[418915816,1774537838606,-338.03990461,0.00013154,2]
[418915817,1774537838616,-500.0,0.00013154,2]
[418915818,1774537838626,-500.0,0.00013154,2]
[418915819,1774537838635,-500.0,0.00013154,2]
[418915820,1774537838645,-500.0,0.00013154,2]
[418915821,1774537838654,-292.4062612,0.00013154,2]
[418915823,1774537838663,-258.83602098,0.00013154,2]
[418915824,1774537838679,-241.16397902,0.00013154,2]
[418915825,1774537838688,-500.0,0.00013154,2]
[418915826,1774537838698,-500.0,0.00013154,2]
[418915827,1774537838707,-500.0,0.00013154,2]
[418915828,1774537838717,-500.0,0.00013154,2]
[418915829,1774537838726,-397.87061023,0.00013154,2]
[418915832,1774537838738,-102.12938977,0.00013154,2]
[418915834,1774537838747,-500.0,0.00013154,2]
[418915836,1774537838757,-500.0,0.00013154,2]
[418915838,1774537838766,-500.0,0.00013154,2]
[418915840,1774537838776,-53.53843618,0.00013154,2]
[418915842,1774537838788,-446.46156382,0.00013154,2]
[418915844,1774537838798,-500.0,0.00013154,2]
[418915846,1774537838807,-500.0,0.00013154,2]
[418915848,1774537838816,-500.0,0.00013154,2]
[418915850,1774537838825,-500.0,0.00013154,2]
[418915852,1774537838834,-500.0,0.00013154,2]
[418915854,1774537838843,-500.0,0.00013154,2]
[418915856,1774537838852,-176.19014257,0.00013154,2]
[418915858,1774537838864,-323.80985743,0.00013154,2]
[418915860,1774537838873,-628.26205001,0.00013154,2]
[418915862,1774537838882,-500.0,0.00013154,2]
[418915864,1774537838893,-500.0,0.00013154,2]
[418915866,1774537838902,-500.0,0.00013154,2]
[418915868,1774537838911,-500.0,0.00013154,2]
[418915870,1774537838921,-500.0,0.00013154,2]
[418915872,1774537838930,-1009.74151116,0.00013155,2]
[418915875,1774537838941,-1605.76825878,0.00013155,2]
[418915877,1774537838951,-4129.87581308,0.00013155,2]
[418915879,1774537838966,-1972.78274802,0.00013155,2]
[418915882,1774537838977,-1367.2009,0.00013155,2]
[418915884,1774537838988,-593.41340116,0.00013155,2]
[418915977,1774537840835,-904.55566127,0.00013155,2]
[418915978,1774537840903,-63351.13550653,0.00013155,2]
[418915979,1774537840912,-204.0,0.0001317,2]
[418915980,1774537840923,-158.35,0.00013175,2]
[418915981,1774537840933,-924.0,0.00013183,2]
[418915982,1774537840942,-1216.0,0.00013183,2]
[418915983,1774537840951,-3763.0,0.00013183,2]
[418915984,1774537840961,-6011.0,0.00013183,2]
[418915985,1774537840973,-150.0,0.00013254,2]
[418915986,1774537840983,-150.0,0.00013255,2]
[418915987,1774537840992,-150.0,0.00013255,2]
[418915988,1774537841003,-1345.0,0.00013255,2]
[418915989,1774537841014,-1045.0,0.00013255,2]
[418915990,1774537841025,-3516.0,0.00013255,2]
[418915991,1774537841035,-1408.59,0.00013257,2]
[418915992,1774537841044,-1000.0,0.00013264,2]
[418915993,1774537841053,-4439.03,0.00013265,2]
[418915994,1774537841062,-1500.0,0.00013339,2]
[418915995,1774537841071,-150.0,0.00013349,2]
[418915996,1774537841080,-1491.348,0.00013442,2]
[418915997,1774537841090,-152.351,0.00013442,2]
[418915998,1774537841099,-1100.0,0.00013467,2]
[418915999,1774537841108,-2000.0,0.00013493,2]
[418916000,1774537841117,-4005.51149824,0.00013498,2]
[418916001,1774537841126,-457.9759,0.00013562,2]
[418916002,1774537841136,-501.58195524,0.00013573,2]
[418916003,1774537841145,-500.0,0.00013575,2]
[418916004,1774537841155,-500.0,0.00013575,2]
[418916005,1774537841164,-410.41845855,0.00013575,2]
[418916006,1774537841173,-500.0,0.00013575,2]
[418916007,1774537841182,-500.0,0.00013575,2]
[418916008,1774537841192,-500.0,0.00013575,2]
[418916009,1774537841201,-500.0,0.00013575,2]
[418916010,1774537841212,-562.24116007,0.00013575,2]
[418916011,1774537841221,-236.225641,0.00013575,2]
[418916012,1774537841230,-221051.23765221,0.00013576,2]
[418916013,1774537841242,-17067.89516353,0.00013576,2]
[418916014,1774537841254,-34646.86462584,0.00013576,2]
[418916015,1774537841265,-2987.2,0.00013576,2]
[418916016,1774537841275,-2095.592,0.00013576,2]
[418916018,1774537841287,-1603.7496992,0.00013576,2]
[418916019,1774537841297,-666.2931946,0.00013576,2]
[418916020,1774537841308,-1397.0,0.00013576,2]
[418916021,1774537841341,-2467.0,0.00013183,2]
[418916022,1774537841351,-97677.38424203,0.00013576,2]
[418916023,1774537841378,-774.6985844,0.00013576,2]
[418916024,1774537841391,-2238.0,0.00013576,2]
[418916029,1774537843765,-500.0,0.00013154,2]
[418916030,1774537843775,-500.0,0.00013154,2]
[418916031,1774537843784,-500.0,0.00013154,2]
[418916032,1774537843793,-500.0,0.00013154,2]
[418916033,1774537843802,-500.0,0.00013154,2]
[418916034,1774537843812,-500.0,0.00013154,2]
[418916035,1774537843822,-500.0,0.00013154,2]
[418916036,1774537843831,-500.0,0.00013154,2]
[418916037,1774537843841,-550.0,0.00013154,2]
[418916038,1774537843850,-500.0,0.00013154,2]
[418916039,1774537843859,-500.0,0.00013154,2]
[418916040,1774537843868,-500.0,0.00013154,2]
[418916041,1774537843877,-500.0,0.00013154,2]
[418916042,1774537843887,-500.0,0.00013154,2]
[418916043,1774537843896,-500.0,0.00013154,2]
[418916044,1774537843906,-500.0,0.00013154,2]
[418916045,1774537843915,-500.0,0.00013154,2]
[418916046,1774537843925,-542934.20797189,0.00013576,2]
[418916047,1774537843937,-317.62281104,0.00013576,2]
[418916048,1774537843949,-311.63758,0.00013576,2]
[418916049,1774537843960,-5533.69079679,0.00013576,2]
[418916051,1774537843984,-4907.59960843,0.00013576,2]
[418916052,1774537843995,-36919.62343507,0.00013576,2]
[418916060,1774537846107,-1946.59488016,0.00013576,2]
[418916061,1774537846118,-1180.09,0.00013576,2]
[418916062,1774537846404,-414.56,0.00013576,2]
[418916063,1774537849326,-179.92697018,0.00013498,2]
[418916064,1774537849335,-4683.95148789,0.00013576,2]
[418916065,1774537849413,-3490.57463495,0.00013576,2]
[418916086,1774537973685,161.51,0.00017,60]
[418916096,1774538948913,155.73,5.67e-05,2]
[418916097,1774538949126,155.73,6.004e-05,2]
[418916098,1774538949329,155.73,6.337e-05,2]
[418916099,1774538949559,155.73,6.671e-05,2]
[418916100,1774538949769,155.73,7.004e-05,2]
[418916101,1774538950043,155.73,7.338e-05,2]
[418916102,1774538950261,155.73,7.672e-05,2]
[418916103,1774538950471,155.73,8.005e-05,2]
[418916104,1774538951020,155.73,8.339e-05,2]
[418916106,1774539032490,-241.0,8.672e-05,2]
[418916107,1774539032500,-155.73,8.672e-05,2]
[418916108,1774539032510,-155.73,9.006e-05,2]
[418916109,1774539032519,-155.73,9.339e-05,2]
[418916110,1774539032528,-121.19668649,9.539e-05,2]
[418916111,1774539032552,-128.80331351,9.539e-05,2]
[418916112,1774539032562,-155.73,9.673e-05,2]
[418916113,1774539032571,-150.0,9.673e-05,2]
[418916114,1774539032581,-400.0,9.741e-05,4]
[418916115,1774539032590,-155.73,0.00010006,2]
[418916116,1774539032599,-62.07759014,0.0001034,2]
[418916117,1774539032615,-93.65240986,0.0001034,2]
[418916118,1774539032625,-487.04,0.00010468,2]
[418916119,1774539032636,-155.73,0.00010673,2]
[418916120,1774539032646,-150.0,0.000107,2]
[418916121,1774539032656,-698.3034086,0.00010792,2]
[418916122,1774539032667,-41.6965914,0.00010792,2]
[418916123,1774539032676,-150.0,0.00010792,7]
[418916124,1774539032686,-155.73,0.00011007,2]
[418916125,1774539032695,-221.38695819,0.00011046,2]
[418916139,1774539038480,-410.68304181,0.00011046,2]
[418916140,1774539038490,-200.0,0.00011071,2]
[418916141,1774539038501,-173.56,0.00011171,2]
[418916142,1774539038515,-155.73,0.0001134,2]
[418916143,1774539038524,-880.0,0.00011351,2]
[418916144,1774539038534,-1200.0,0.00011506,2]
[418916145,1774539038543,-2778.57,0.00011507,2]
[418916146,1774539038553,-276.0,0.00011513,2]
[418916147,1774539038563,-300.0,0.00011513,2]
[418916148,1774539038572,-300.0,0.00011513,2]
[418916149,1774539038582,-300.0,0.00011513,2]
[418916150,1774539038591,-952.57383079,0.00011514,2]
[418916151,1774539042541,-1011.27654,0.00011514,2]
[418916152,1774539042553,-3036.14962921,0.00011514,2]
[418916153,1774539042562,-66.67998993,0.00011514,2]
[418916154,1774539042574,-183.32001007,0.00011514,2]
[418916155,1774539042584,-98.22998993,0.00011631,2]
[418916157,1774539042630,-1698.08864058,0.00011631,2]
[418916158,1774539042642,-303.68136949,0.00011631,2]
[418916159,1774539042651,-150.0,0.00011631,2]
[418916160,1774539042660,-1200.0,0.00011632,2]
[418916161,1774539042670,-495.65464513,0.00011633,2]
[418916162,1774539042682,-1504.34535487,0.00011633,2]
[418916163,1774539042691,-804.0410032,0.00011663,2]
[418916164,1774539042704,-19.7889968,0.00011663,2]
[418916165,1774539042714,-529.23216247,0.00011782,2]
[418916166,1774539042734,-2247.17783753,0.00011782,2]
[418916167,1774539042743,-900.0,0.00011878,2]
[418916168,1774539042752,-204.0,0.00011991,2]
[418916169,1774539042762,-248.82216247,0.00012061,2]
[418916170,1774539042773,-589.98349345,0.00012061,2]
[418916172,1774539042785,-82315.88234408,0.00012061,2]
[418916173,1774539042794,-197.2503,0.000121,2]
[418916174,1774539042814,-560.0,0.00012103,2]
[418916175,1774539042824,-2295.79203525,0.00012161,2]
[418916176,1774539042837,-104.20796475,0.00012161,2]
[418916177,1774539042846,-160.0,0.00012315,2]
[418916178,1774539042856,-1740.66,0.00012505,2]
[418916179,1774539042866,-166.66,0.00012516,2]
[418916180,1774539042876,-383.45,0.0001252,2]
[418916181,1774539042886,-200.0,0.000126,4]
[418916182,1774539042895,-1033.79284535,0.000126,2]
[418916183,1774539042908,-1026.21607008,0.000126,2]
[418916184,1774539042918,-536.0,0.0001263,2]
[418916185,1774539042928,-420.0,0.00012645,2]
[418916186,1774539042938,-420.0,0.00012645,2]
[418916187,1774539042948,-1680.0,0.00012656,2]
[418916188,1774539042959,-2300.0,0.00012664,2]
[418916189,1774539042969,-823.80961714,0.0001268,2]
[418916190,1774539042978,-30098.97681027,0.0001268,2]
[418916191,1774539042988,-4689.74136039,0.0001268,2]
[418916192,1774539042998,-400.0,0.000127,4]
[418916193,1774539043008,-255.0,0.00012701,2]
[418916194,1774539043018,-777.68509786,0.00012763,2]
[418916195,1774539043028,-151.0,0.00012765,2]
[418916196,1774539043038,-151.0,0.00012765,2]
[418916197,1774539043048,-1337.30371513,0.00012765,2]
[418916198,1774539043058,-151.0,0.00012765,2]
[418916199,1774539043068,-151.0,0.00012765,2]
[418916200,1774539043078,-151.0,0.00012765,2]
[418916201,1774539043088,-151.0,0.00012765,2]
[418916202,1774539043101,-151.0,0.00012765,2]
[418916203,1774539043111,-182.53770041,0.00012765,2]
[418916204,1774539043121,-500.0,0.00012772,2]
[418916205,1774539043130,-500.0,0.00012772,2]
[418916206,1774539043140,-500.0,0.00012772,2]
[418916207,1774539043149,-500.0,0.00012772,2]
[418916208,1774539043159,-500.0,0.00012772,2]
[418916209,1774539043169,-500.0,0.00012772,2]
[418916210,1774539043180,-236.225641,0.00012772,2]
[418916211,1774539043190,-562.24116007,0.00012772,2]
[418916212,1774539043199,-500.0,0.00012772,2]
[418916213,1774539043209,-500.0,0.00012772,2]
[418916214,1774539043219,-500.0,0.00012772,2]
[418916215,1774539043228,-567.826205,0.00012772,2]
[418916217,1774539043555,-500.0,0.00012772,2]
[418916218,1774539043566,-410.41845855,0.00012772,2]
[418916219,1774539043577,-501.58195524,0.00012773,2]
[418916220,1774539043587,-500.0,0.00012773,2]
[418916221,1774539043596,-500.0,0.00012773,2]
[418916222,1774539043607,-87017.4362088,0.00012773,2]
[418916223,1774539043625,-671.07308538,0.00012773,2]
[418916224,1774539043637,-746.80423591,0.00012773,2]
[418916225,1774539043649,-1401.9124575,0.00012773,2]
[418916226,1774539043662,-1057.47540344,0.00012773,2]
[418916227,1774539043679,-1000.18778537,0.00012773,2]
[418916228,1774539043692,-865.69,0.00012773,2]
[418916229,1774539043704,-597.05296577,0.00012773,2]
[418916230,1774539043719,-1691.06524236,0.00012773,2]
[418916231,1774539043730,-11991.61838017,0.00012773,2]
[418916232,1774539043746,-19972.00000002,0.00012773,2]
[418916233,1774539043758,-3208.1427017,0.00012773,2]
[418916234,1774539043770,-364.32594766,0.00012773,2]
[418916235,1774539043783,-606.79033749,0.00012773,2]
[418916236,1774539043794,-720.215,0.00012773,2]
[418916238,1774539043829,-1696.20480045,0.00012773,2]
[418916239,1774539043841,-68628.99999998,0.00012773,2]
[418916240,1774539043853,-1076509.18057593,0.00012773,2]
[418916241,1774539043869,-666.6665267,0.00012773,2]
[418916242,1774539043880,-11113.4994669,0.00012773,2]
[418916243,1774539043892,-22979.5758154,0.00012773,2]
[418916244,1774539043903,-1121.3155862,0.00012773,2]
[418916245,1774539043976,-2769.92087018,0.00012773,2]
[418916246,1774539044067,-182602.84660669,0.00012773,2]
[418916247,1774539044079,-166.66,0.0001278,2]
[418916249,1774539044089,-12551.0,0.00012781,2]
[418916251,1774539044099,-979.16666667,0.00012784,2]
[418916252,1774539044110,-600.0,0.000128,4]
[418916253,1774539044120,-1058.87569171,0.00012873,2]
[418916254,1774539044130,-176.30167223,0.00012873,2]
[418916255,1774539044141,-9545.0691105,0.00012873,2]
[418916256,1774539044151,-372.58269065,0.00012873,2]
[418916257,1774539044161,-900.0,0.000129,4]
[418916258,1774539044171,-430.48665564,0.0001294,2]
[418916259,1774539044181,-151.0,0.00012957,2]
[418916260,1774539044191,-457.9759,0.00012959,2]
[418916261,1774539044202,-500.0,0.00012973,2]
[418916262,1774539044212,-500.0,0.00012973,2]
[418916263,1774539044222,-171.45255941,0.00012973,2]
[418916264,1774539044233,-250.0,0.00013,2]
[418916265,1774539044243,-203.58244652,0.00013038,2]
[418916266,1774539044255,-6894.64744975,0.00013038,2]
[418916267,1774539044275,-16146.36300254,0.00013038,2]
[418916268,1774539044287,-1096.04630215,0.00013038,2]
[418916269,1774539044298,-2494.11229824,0.00013038,2]
[418916281,1774539046334,-261.64208555,0.00013038,2]
[418916283,1774539046347,-3002.58322547,0.00013038,2]
[418916285,1774539046356,-166.66,0.00013043,2]
[418916286,1774539046366,-2400.0,0.0001305,2]
[418916287,1774539046376,-250.0,0.00013054,2]
[418916288,1774539046385,-2000.0,0.00013087,2]
[418916289,1774539046395,-4689.74136038,0.0001314,2]
[418916290,1774539046404,-1000.0,0.0001315,2]
[418916291,1774539046413,-1000.0,0.0001315,2]
[418916292,1774539046423,-500.0,0.00013151,2]
[418916293,1774539046432,-1067.17461763,0.00013154,2]
[418916294,1774539046441,-500.0,0.00013175,2]
[418916295,1774539046451,-13595.6,0.00013175,2]
[418916296,1774539046460,-16306.05,0.00013175,2]
[418916297,1774539046470,-6926.41,0.00013175,2]
[418916298,1774539046479,-1600.0,0.00013175,2]
[418916299,1774539046488,-166.66,0.00013307,2]
[418916300,1774539046498,-1386.78395259,0.00013313,2]
[418916301,1774539046507,-31946.35873046,0.00013396,2]
[418916302,1774539046517,-30098.97681022,0.00013396,2]
[418916303,1774539046526,-160.0,0.00013424,2]
[418916304,1774539046536,-290.67908,0.00013425,2]
[418916305,1774539046545,-433.55,0.00013446,2]
[418916306,1774539046554,-1400.0,0.00013453,2]
[418916307,1774539046564,-188.0,0.000135,2]
[418916308,1774539046572,-259.3845,0.000135,2]
[418916309,1774539046582,-166.66,0.0001357,2]
[418916310,1774539046591,-247646.91737353,0.00013571,2]
[418916311,1774539046603,-12326.92136737,0.00013571,2]
[418916312,1774539046612,-3257.5007798,0.00013571,2]
[418916313,1774539046622,-100050.1249808,0.00013571,2]
[418916314,1774539046631,-2346.613921,0.00013571,2]
[418916315,1774539046640,-320.91,0.00013571,2]
[418916316,1774539046650,-151.0,0.00013571,2]
[418916317,1774539046660,-193.661689,0.00013571,2]
[418916318,1774539046669,-193.661689,0.00013571,2]
[418916319,1774539046679,-193.661689,0.00013571,2]
[418916320,1774539046689,-193.661689,0.00013571,2]
[418916321,1774539046698,-151.0,0.00013571,2]
[418916322,1774539046707,-151.0,0.00013571,2]
[418916323,1774539046717,-151.0,0.00013571,2]
[418916324,1774539046727,-151.0,0.00013571,2]
[418916325,1774539046736,-731.255934,0.00013571,2]
[418916326,1774539046745,-731.255934,0.00013571,2]
[418916327,1774539046754,-731.255934,0.00013571,2]
[418916328,1774539046763,-731.255934,0.00013571,2]
[418916329,1774539046772,-831.067685,0.00013571,2]
[418916330,1774539046782,-831.067685,0.00013571,2]
[418916331,1774539046792,-831.067685,0.00013571,2]
[418916332,1774539046801,-831.067685,0.00013571,2]
[418916333,1774539046810,-151.0,0.00013571,2]
[418916334,1774539046820,-151.0,0.00013573,2]
[418916335,1774539046829,-151.0,0.00013576,2]
[418916336,1774539046840,-500.0,0.00013576,2]
[418916337,1774539046849,-500.0,0.00013576,2]
[418916338,1774539046859,-500.0,0.00013576,2]
[418916339,1774539046867,-500.0,0.00013576,2]
[418916340,1774539046877,-4689.74136038,0.000136,2]
[418916341,1774539046886,-2238.87,0.00013608,2]
[418916342,1774539046895,-188.88,0.0001364,2]
[418916343,1774539046904,-151.0,0.00013671,2]
[418916344,1774539046915,-53243.06646211,0.00013674,2]
[418916345,1774539046924,-870.0,0.00013676,5]
[418916346,1774539046933,-500.0,0.00013698,2]
[418916347,1774539046943,-257.73702656,0.00013698,2]
[418916348,1774539046953,-500.0,0.00013698,2]
[418916349,1774539046962,-500.0,0.00013698,2]
[418916350,1774539046971,-500.0,0.00013698,2]
[418916352,1774539046980,-500.0,0.00013698,2]
[418916353,1774539046990,-500.0,0.00013698,2]
[418916354,1774539046999,-500.0,0.00013698,2]
[418916355,1774539047008,-500.0,0.00013698,2]